bitfinex-derivatives/quotes_ETHF0:USTF0_20260316
["timestamp","ask_amount","ask_price","bid_price","bid_amount"]
[1773669039847,12.37005172,2292.2,2291.4,8.288]
[1773669040049,12.37005172,2292.2,2291.3,10.5603403]
[1773669040243,12.37005172,2292.2,2291.0,10.52084697]
[1773669040643,12.37005172,2292.2,2291.0,8.29]
[1773669041140,12.37005172,2292.2,2291.1,10.47874036]
[1773669043239,12.37005172,2292.2,2291.2,8.294]
[1773669045546,12.37005172,2292.2,2291.1,8.296]
[1773669045742,12.37005172,2292.0,2290.9,10.38040062]
[1773669045947,12.37005172,2291.8,2290.6,10.30562479]
[1773669046251,12.37005172,2291.6,2290.6,10.30562479]
[1773669046652,12.37005172,2291.6,2290.8,10.26651327]
[1773669046843,12.37005172,2292.1,2290.8,10.48473327]
[1773669047648,12.37005172,2292.1,2291.0,10.22780901]
[1773669048256,12.37005172,2292.3,2291.2,10.16105247]
[1773669052255,12.37005172,2292.3,2290.6,0.21824]
[1773669052256,12.37005172,2292.3,2291.0,9.93156753]
[1773669052463,12.37005172,2292.3,2291.2,9.912298]
[1773669054052,12.20226256,2292.5,2291.4,9.85703375]
[1773669054852,0.00513443,2292.6,2291.8,9.85824585]
[1773669055053,12.20226256,2293.3,2292.0,9.85824585]
[1773669055251,12.20226256,2292.5,2291.3,10.53011656]
[1773669055552,12.20226256,2292.3,2291.3,10.53011656]
[1773669055952,12.20226256,2292.3,2291.3,18.83911656]
[1773669056150,12.20711425,2292.3,2291.4,10.53011656]
[1773669057955,12.20711425,2292.3,2291.4,18.84211656]
[1773669058359,12.20711425,2292.3,2291.4,18.84311656]
[1773669059252,12.20711425,2292.3,2291.3,0.00324332]
[1773669060152,12.20711425,2292.3,2291.3,8.78665424]
[1773669060554,12.20711425,2292.3,2291.4,17.15563786]
[1773669060955,0.00485169,2292.3,2291.5,8.83663786]
[1773669061752,12.20226256,2292.8,2291.6,8.78718407]
[1773669062058,12.20226256,2292.8,2292.0,9.00529407]
[1773669062251,12.20226256,2292.8,2292.1,8.322]
[1773669062852,12.20226256,2293.5,2292.2,8.77750533]
[1773669063152,12.20226256,2293.5,2292.6,8.73833334]
[1773669063655,12.20226256,2293.5,2292.8,8.82222793]
[1773669063860,12.20551036,2293.5,2292.8,8.82222793]
[1773669064255,12.20551036,2293.5,2292.9,8.329]
[1773669064762,12.20551036,2293.5,2292.5,8.31612384]
[1773669064961,12.20551036,2293.5,2292.7,8.33]
[1773669065254,12.20226256,2292.9,2291.8,8.27685473]
[1773669065454,12.20226256,2292.8,2291.4,8.18177758]
[1773669065653,12.20226256,2292.8,2291.5,8.331]
[1773669065855,12.20226256,2292.6,2291.3,0.00324332]
[1773669066364,8.142,2292.9,2291.3,0.00324332]
[1773669066365,12.20226256,2292.4,2291.3,0.00324332]
[1773669066661,12.20226256,2292.2,2290.6,16.49021647]
[1773669066861,12.20226256,2292.2,2290.7,16.49021647]
[1773669067063,12.20226256,2292.2,2290.8,8.334]
[1773669067462,12.20226256,2292.2,2290.9,8.27386968]
[1773669067663,12.20226256,2292.1,2290.9,8.27826733]
[1773669068551,0.22186561,2292.9,2291.3,8.50124212]
[1773669068552,12.20226256,2292.9,2291.3,8.50124212]
[1773669068751,12.20226256,2292.9,2291.5,8.50124212]
[1773669069062,12.20226256,2292.9,2291.4,8.339]
[1773669069263,12.20226256,2292.9,2291.4,17.07220796]
[1773669069563,12.20226256,2292.7,2291.5,8.73220796]
[1773669070260,12.20226256,2292.7,2291.6,8.342]
[1773669070862,12.20226256,2292.7,2291.7,8.73187979]
[1773669071062,12.20226256,2292.7,2291.6,8.342]
[1773669071063,12.20226256,2292.7,2291.8,8.91146314]
[1773669071256,12.20226256,2292.7,2291.9,8.343]
[1773669071561,12.20226256,2292.7,2291.9,17.04001588]
[1773669071961,12.20226256,2292.7,2291.9,8.343]
[1773669072164,8.15,2293.3,2290.9,17.63387113]
[1773669072165,12.20226256,2292.5,2291.0,8.65858886]
[1773669072460,12.20226256,2292.3,2291.0,17.00358886]
[1773669072661,12.20226256,2292.1,2291.0,17.00358886]
[1773669073363,12.20226256,2292.1,2291.1,8.346]
[1773669075362,12.20226256,2292.1,2291.0,8.65858886]
[1773669075558,12.20226256,2292.1,2291.1,8.349]
[1773669075761,12.20226256,2291.6,2290.1,11.84854029]
[1773669075960,12.20226256,2291.4,2289.8,11.84854029]
[1773669076165,8.72523,2291.9,2289.8,11.84854029]
[1773669076166,12.20226256,2291.2,2289.8,11.84854029]
[1773669076665,12.20226256,2291.0,2289.8,11.84854029]
[1773669076866,12.20784528,2291.0,2289.8,11.85169081]
[1773669078064,12.20784528,2291.0,2289.9,20.20054029]
[1773669078269,12.20784528,2291.0,2289.8,8.35615052]
[1773669079973,12.20784528,2291.0,2289.8,0.00315052]
[1773669080172,12.20784528,2291.0,2289.8,8.35815052]
[1773669080778,12.20784528,2291.0,2289.9,11.84854029]
[1773669082076,12.20784528,2291.0,2289.8,0.00315052]
[1773669082679,12.20784528,2291.0,2289.8,11.55905615]
[1773669084380,11.97971773,2290.8,2290.0,11.55590563]
[1773669084771,11.97971773,2290.8,2289.8,11.55905615]
[1773669084977,11.97971773,2290.8,2289.8,19.92005615]
[1773669085276,11.97971773,2290.8,2289.9,11.55590563]
[1773669085970,11.97971773,2290.8,2289.8,8.36415052]
[1773669086170,11.97971773,2290.8,2289.8,0.00315052]
[1773669087472,11.97971773,2290.6,2289.8,0.00315052]
[1773669088376,20.15971773,2290.6,2289.8,0.00315052]
[1773669088578,11.97971773,2290.5,2289.8,0.00315052]
[1773669089074,11.97971773,2290.5,2289.8,11.55905615]
[1773669089278,11.97971773,2290.5,2289.8,0.00315052]
[1773669091079,11.97971773,2290.5,2289.4,11.55590563]
[1773669091282,11.97971773,2290.5,2288.8,11.77431563]
[1773669091480,11.97971773,2290.5,2289.3,11.55590563]
[1773669091686,11.97971773,2290.3,2289.0,11.55590563]
[1773669091883,11.97971773,2290.3,2287.9,11.33336676]
[1773669091884,13.84842251,2289.9,2288.4,11.55590563]
[1773669092082,11.97971773,2289.7,2288.4,11.55938787]
[1773669092380,11.97971773,2289.7,2288.4,19.92638787]
[1773669092585,11.97971773,2289.7,2288.4,11.55938787]
[1773669093582,11.97971773,2289.7,2288.4,0.00348224]
[1773669094080,11.97971773,2289.7,2288.6,11.55590563]
[1773669094284,11.97971773,2289.7,2288.7,11.55590563]
[1773669094587,11.97971773,2289.7,2288.4,11.55938787]
[1773669094881,11.97971773,2289.7,2288.5,11.55590563]
[1773669095186,11.97971773,2289.6,2288.5,11.55590563]
[1773669096481,11.97971773,2289.3,2288.4,0.00348224]
[1773669096684,11.98293225,2289.3,2288.4,0.00348224]
[1773669096982,8.203,2289.2,2287.7,11.77442563]
[1773669097187,11.97971773,2289.1,2287.7,11.77442563]
[1773669097983,11.97971773,2289.1,2287.7,11.7797734]
[1773669098188,11.97971773,2288.9,2287.7,11.7797734]
[1773669100190,11.97971773,2288.9,2287.9,11.55590563]
[1773669100490,11.97971773,2288.9,2288.0,8.373]
[1773669100690,11.97971773,2288.9,2288.0,11.55590563]
[1773669101091,11.97971773,2288.9,2287.7,11.7797734]
[1773669101286,11.97971773,2288.9,2287.7,0.00534777]
[1773669101493,8.215,2288.8,2287.7,0.00534777]
[1773669101690,11.97971773,2288.7,2287.7,11.5612534]
[1773669101886,11.97971773,2288.7,2287.7,0.00534777]
[1773669102995,13.84842251,2287.8,2286.6,11.55590563]
[1773669103191,13.84842251,2287.8,2286.0,11.55590563]
[1773669103395,11.97971773,2287.6,2286.2,11.55590563]
[1773669103892,11.98449187,2287.6,2286.4,11.55590563]
[1773669104391,11.97971773,2288.3,2286.8,11.55590563]
[1773669104695,11.97971773,2288.3,2286.9,8.376]
[1773669105091,11.97971773,2288.1,2286.8,19.93190563]
[1773669105291,11.97971773,2287.9,2286.8,11.55590563]
[1773669105491,11.97971773,2287.9,2286.9,11.55590563]
[1773669105892,11.98507582,2288.1,2286.9,11.55590563]
[1773669106093,11.98507582,2288.1,2287.3,11.55590563]
[1773669106292,11.98507582,2288.1,2287.4,8.377]
[1773669106498,11.98507582,2288.1,2287.6,0.60640329]
[1773669106993,0.00535809,2288.1,2287.5,11.55590563]
[1773669107194,11.97971773,2288.3,2287.5,11.55590563]
[1773669107893,11.97971773,2288.8,2287.5,11.77444563]
[1773669108093,11.98297117,2288.8,2287.5,11.77444563]
[1773669108294,11.98297117,2288.8,2286.7,8.74468]
[1773669108295,11.97971773,2288.6,2287.3,11.55590563]
[1773669108598,11.97971773,2288.6,2287.4,8.38]
[1773669109794,11.97971773,2288.4,2287.4,8.38]
[1773669110096,11.97971773,2288.2,2286.5,11.55590563]
[1773669110395,11.97971773,2287.6,2286.2,11.56100826]
[1773669110595,11.97971773,2287.4,2286.2,0.00510263]
[1773669110795,11.97971773,2287.4,2286.3,0.60640329]
[1773669110994,11.97971773,2287.4,2286.3,8.98940329]
[1773669111198,11.97971773,2287.4,2286.3,8.383]
[1773669111396,11.97971773,2287.4,2286.3,8.98940329]
[1773669111702,11.97971773,2287.4,2286.4,11.55590563]
[1773669112197,11.97971773,2287.4,2286.4,19.93990563]
[1773669112502,11.97971773,2287.4,2286.5,0.60640329]
[1773669112702,11.97971773,2287.4,2286.4,19.93990563]
[1773669112995,12.17422673,2287.7,2286.5,11.29872711]
[1773669113202,12.17422673,2287.5,2286.2,11.30382974]
[1773669113497,12.17422673,2287.4,2286.2,11.30382974]
[1773669113801,12.17422673,2287.4,2286.2,0.61150592]
[1773669114004,11.6607519,2287.2,2285.6,12.19020687]
[1773669114301,11.6607519,2287.2,2285.4,0.21874]
[1773669114302,11.6607519,2287.2,2285.8,12.19020687]
[1773669114700,11.6607519,2287.0,2285.7,8.387]
[1773669114908,11.6607519,2286.6,2285.7,0.00504128]
[1773669115099,11.6607519,2286.4,2285.3,20.57820687]
[1773669115601,11.6607519,2286.4,2285.3,12.19020687]
[1773669115902,11.6607519,2286.4,2285.2,8.389]
[1773669116103,8.239,2286.5,2285.2,0.00389104]
[1773669116104,11.6607519,2286.2,2285.2,0.00389104]
[1773669116306,11.6607519,2286.2,2285.2,12.19409791]
[1773669116499,11.6607519,2286.2,2285.2,0.00389104]
[1773669118001,1.86870478,2285.8,2283.9,12.19020687]
[1773669118207,11.6607519,2285.7,2284.0,12.40908687]
[1773669118705,11.6607519,2285.7,2284.4,12.19020687]
[1773669118909,11.6607519,2285.7,2284.4,12.19452901]
[1773669119302,11.6607519,2285.7,2284.5,0.60640329]
[1773669119502,8.247,2285.6,2284.4,0.00432214]
[1773669119705,11.6607519,2285.5,2284.4,0.00432214]
[1773669120207,11.6607519,2285.5,2284.4,12.19452901]
[1773669120607,11.6607519,2285.5,2283.5,8.75699]
[1773669120608,11.6607519,2285.5,2283.5,12.19020687]
[1773669120908,11.6607519,2284.7,2283.1,12.19020687]
[1773669121107,11.6607519,2284.7,2283.3,12.19020687]
[1773669121311,11.6607519,2284.7,2283.6,12.19020687]
[1773669121506,11.6607519,2285.3,2283.8,12.19020687]
[1773669121901,0.21878,2285.0,2283.9,0.60640329]
[1773669122101,11.6607519,2284.9,2283.8,0.00432744]
[1773669122304,11.6607519,2284.9,2283.8,12.19453431]
[1773669122506,11.6607519,2284.9,2283.8,0.00432744]
[1773669122708,11.6607519,2284.1,2282.5,12.40921687]
[1773669122907,11.6607519,2284.1,2282.6,8.393]
[1773669123107,11.6607519,2284.1,2282.7,12.19020687]
[1773669123410,11.6607519,2283.8,2282.0,12.19020687]
[1773669123611,11.6607519,2283.8,2282.0,12.19242641]
[1773669123809,11.6607519,2283.8,2282.2,12.19020687]
[1773669124308,2.08752478,2284.7,2282.6,12.19020687]
[1773669124309,11.6607519,2284.2,2282.6,12.19020687]
[1773669124708,11.6607519,2284.2,2282.7,12.19020687]
[1773669124908,11.6607519,2284.2,2282.8,20.58420687]
[1773669125105,11.6607519,2284.2,2282.8,12.19020687]
[1773669125306,11.6607519,2284.2,2282.9,12.19020687]
[1773669126315,11.6607519,2284.2,2283.1,12.19020687]
[1773669126514,11.6607519,2284.2,2282.1,12.19020687]
[1773669126812,11.6607519,2284.0,2282.2,8.395]
[1773669127012,11.6607519,2284.0,2282.0,0.00221954]
[1773669127013,11.6607519,2283.5,2282.0,0.00221954]
[1773669127203,11.66596419,2283.5,2282.1,8.395]
[1773669127403,11.66596419,2283.5,2282.2,12.19020687]
[1773669127809,11.66596419,2283.5,2282.3,20.58620687]
[1773669128112,11.66596419,2283.5,2282.4,12.19020687]
[1773669128814,11.66596419,2283.5,2282.5,8.397]
[1773669129011,11.66596419,2283.5,2282.0,0.00221954]
[1773669129404,11.66596419,2283.5,2282.0,11.93856513]
[1773669129606,11.66596419,2283.5,2282.1,8.398]
[1773669129809,11.66596419,2283.5,2282.2,11.93634559]
[1773669130113,11.66596419,2283.5,2282.2,20.33434559]
[1773669130309,11.66596419,2283.5,2282.0,0.00221954]
[1773669130514,11.66596419,2283.5,2282.2,8.399]
[1773669130815,11.66596419,2283.5,2282.0,11.9769888]
[1773669131016,11.66596419,2283.5,2282.1,8.399]
[1773669131212,19.92196419,2283.5,2282.0,0.00221954]
[1773669131518,11.6607519,2283.4,2282.0,0.00221954]
[1773669131815,11.6607519,2283.4,2282.1,8.399]
[1773669133016,11.8796919,2283.4,2282.0,0.00221954]
[1773669133822,11.6607519,2283.4,2282.0,12.0559249]
[1773669134019,11.6607519,2283.4,2282.1,8.401]
[1773669134419,11.6607519,2283.4,2282.2,11.92822183]
[1773669134720,11.6607519,2283.4,2282.3,8.401]
[1773669134919,11.6607519,2283.4,2282.3,20.32922183]
[1773669135215,11.6607519,2283.4,2282.4,11.89456652]
[1773669135412,11.6607519,2284.1,2283.0,11.97198677]
[1773669135611,11.6607519,2284.3,2283.0,11.97198677]
[1773669135812,11.6607519,2284.3,2283.2,11.97198677]
[1773669136020,11.6607519,2284.3,2283.4,11.97198677]
[1773669136221,11.6607519,2285.0,2283.4,11.97198677]
[1773669136422,11.66482909,2285.0,2283.5,8.402]
[1773669136624,11.66482909,2285.0,2283.7,12.03462613]
[1773669136822,11.66482909,2285.0,2283.7,12.03922508]
[1773669137017,11.6607519,2284.6,2283.7,0.00459895]
[1773669137428,11.6607519,2284.4,2283.1,8.402]
[1773669137627,11.6607519,2284.4,2282.9,8.392]
[1773669138027,11.6607519,2284.4,2283.0,8.392]
[1773669138322,11.6607519,2284.4,2283.0,0.00283289]
[1773669138525,11.6607519,2284.2,2283.0,0.00283289]
[1773669139325,11.6607519,2284.2,2283.0,12.17894614]
[1773669140432,11.6607519,2284.2,2283.0,0.00283289]
[1773669140828,11.6607519,2284.2,2283.0,12.13846048]
[1773669141430,11.6607519,2283.1,2281.6,12.71764048]
[1773669141629,11.6607519,2283.0,2281.6,12.71764048]
[1773669141830,11.6607519,2283.0,2281.6,21.11364048]
[1773669142131,11.6607519,2283.0,2281.7,12.10280886]
[1773669142332,11.66586903,2283.0,2281.7,12.10764542]
[1773669142531,11.66586903,2283.0,2281.7,0.00483656]
[1773669143033,11.66586903,2283.0,2281.7,8.40183656]
[1773669143227,11.66586903,2283.0,2281.7,19.27511048]
[1773669143428,11.66586903,2283.0,2281.8,10.87327392]
[1773669143629,11.66586903,2283.0,2281.8,19.27127392]
[1773669143829,11.66586903,2283.0,2281.9,10.87327392]
[1773669144032,11.66586903,2283.0,2282.0,19.27127392]
[1773669144338,11.45755248,2283.3,2282.1,11.09232392]
[1773669144836,11.45755248,2283.3,2282.2,8.4]
[1773669145030,11.45755248,2283.3,2282.3,10.87327392]
[1773669145225,11.46160626,2283.3,2282.4,8.4]
[1773669145523,11.46160626,2283.3,2282.5,8.401]
[1773669145928,11.46160626,2283.3,2281.7,10.87811048]
[1773669146329,11.46160626,2283.3,2281.9,10.87327392]
[1773669146727,11.46160626,2283.3,2282.3,10.87327392]
[1773669146934,11.46160626,2283.3,2282.2,0.21905]
[1773669146935,11.45755248,2283.6,2282.7,10.87327392]
[1773669147234,11.45755248,2283.6,2282.8,8.403]
[1773669147832,11.46067367,2283.6,2282.8,8.403]
[1773669148038,0.00312119,2283.6,2282.9,10.87327392]
[1773669148335,11.46067367,2283.6,2282.9,8.405]
[1773669149036,11.46067367,2283.6,2282.8,10.87327392]
[1773669149232,0.00312119,2283.6,2282.9,19.27927392]
[1773669149533,11.45755248,2283.4,2282.3,11.09231392]
[1773669149929,11.45755248,2283.4,2282.4,10.87327392]
[1773669150128,11.45755248,2283.4,2282.5,8.408]
[1773669150535,11.45755248,2283.4,2282.5,19.28127392]
[1773669150735,11.45755248,2283.4,2282.6,10.87327392]
[1773669150933,0.00312119,2283.6,2282.7,11.09227392]
[1773669151530,0.00085698,2283.6,2282.9,10.87327392]
[1773669151836,11.45755248,2284.1,2283.0,11.09224392]
[1773669152339,11.45755248,2284.1,2283.2,10.87327392]
[1773669152633,11.45755248,2284.1,2283.2,8.413]
[1773669152837,11.46152975,2284.1,2283.2,8.413]
[1773669153040,11.46152975,2284.1,2283.2,19.28627392]
[1773669153228,11.45755248,2284.5,2283.7,10.87327392]
[1773669153434,11.45755248,2284.5,2283.8,8.415]
[1773669153734,11.45755248,2284.5,2282.9,10.87327392]
[1773669153940,11.45755248,2284.4,2282.9,10.87327392]
[1773669154336,11.46083886,2284.4,2282.9,10.87672215]
[1773669155842,11.46083886,2284.4,2283.0,8.42]
[1773669156242,11.46083886,2284.4,2282.9,10.87672215]
[1773669156243,11.45755248,2284.2,2282.9,0.00344823]
[1773669156838,11.45755248,2284.2,2282.9,10.87672215]
[1773669157442,11.46083886,2284.4,2283.1,10.87327392]
[1773669157635,11.46083886,2284.4,2283.2,8.424]
[1773669157835,11.46083886,2284.4,2283.3,10.87327392]
[1773669158040,11.46083886,2284.4,2283.5,10.87327392]
[1773669158849,0.00328638,2284.4,2283.5,10.87327392]
[1773669159348,11.46083886,2284.4,2283.6,8.428]
[1773669159547,11.46083886,2284.4,2283.7,10.87327392]
[1773669159845,0.00328638,2284.4,2283.7,10.87327392]
[1773669160240,0.00328638,2284.4,2283.8,19.30327392]
[1773669160544,0.00328638,2284.4,2283.8,10.87327392]
[1773669160737,0.00328638,2284.4,2283.9,19.30427392]
[1773669160937,11.45755248,2284.9,2283.7,10.87327392]
[1773669161143,11.45755248,2284.9,2283.8,8.433]
[1773669161646,11.45755248,2284.9,2283.9,10.87327392]
[1773669161846,11.46240233,2284.9,2283.9,10.87327392]
[1773669162644,11.46240233,2284.9,2283.9,8.437]
[1773669163350,11.46240233,2284.9,2283.6,10.87327392]
[1773669163847,11.46240233,2284.9,2283.7,8.439]
[1773669164345,11.46240233,2284.9,2283.7,8.44]
[1773669164643,11.46240233,2284.9,2283.8,8.441]
[1773669164844,11.45755248,2284.7,2283.0,10.87327392]
[1773669165047,11.45755248,2284.3,2282.6,10.87327392]
[1773669165246,11.45755248,2283.9,2282.6,10.87327392]
[1773669165449,11.45755248,2283.9,2282.8,10.87327392]
[1773669165641,19.74955248,2284.2,2283.0,10.87327392]
[1773669165847,11.45755248,2284.1,2283.2,10.87327392]
[1773669166048,11.45755248,2284.1,2283.2,0.00453342]
[1773669166245,11.67643248,2284.1,2282.4,19.31727392]
[1773669166450,11.67643248,2284.1,2282.5,8.445]
[1773669166650,11.67643248,2284.1,2282.5,19.31827392]
[1773669167048,11.67643248,2284.1,2282.6,8.446]
[1773669167254,11.45755248,2283.2,2281.8,10.87327392]
[1773669167552,11.45755248,2283.2,2282.0,10.87327392]
[1773669168046,11.45755248,2282.9,2281.7,4.66852076]
[1773669168251,11.45755248,2282.9,2281.6,0.60797177]
[1773669168252,11.45755248,2282.5,2281.6,0.60797177]
[1773669168448,11.45755248,2282.5,2280.2,8.76971]
[1773669168449,11.45755248,2281.9,2280.5,10.87327392]
[1773669168842,8.296,2282.8,2280.7,10.87327392]
[1773669169044,11.45755248,2282.6,2280.7,10.87327392]
[1773669169249,11.45755248,2282.4,2280.9,10.87327392]
[1773669170247,11.45755248,2282.4,2281.1,10.87327392]
[1773669170645,11.45755248,2282.4,2281.2,8.454]
[1773669170843,11.45755248,2282.4,2281.3,10.87327392]
[1773669171650,8.76177,2282.3,2280.8,10.87327392]
[1773669171849,11.45755248,2282.4,2280.7,0.00530658]
[1773669172046,11.45755248,2282.2,2280.7,0.00530658]
[1773669172247,11.45755248,2282.2,2280.7,11.04478868]
[1773669172950,10.55783535,2282.0,2280.7,11.04478868]
[1773669173150,10.55783535,2282.0,2280.8,8.459]
[1773669173748,10.55783535,2281.8,2280.7,0.00530658]
[1773669173947,10.55783535,2281.5,2280.1,20.08122008]
[1773669174151,10.55783535,2281.5,2280.1,11.63422008]
[1773669174353,10.55783535,2281.5,2280.3,11.63422008]
[1773669174654,10.55783535,2281.5,2280.4,8.435]
[1773669174853,10.75941931,2281.1,2279.7,11.63422008]
[1773669175157,8.7653,2281.4,2279.5,11.63422008]
[1773669175158,10.75941931,2280.9,2279.5,11.63422008]
[1773669175456,10.75941931,2280.9,2279.7,11.63422008]
[1773669175753,10.75941931,2280.9,2279.8,20.07422008]
[1773669175950,10.76389504,2280.9,2279.7,11.63422008]
[1773669176155,10.76389504,2280.9,2278.8,8.77487]
[1773669176156,10.76389504,2280.9,2279.3,11.63422008]
[1773669176456,10.76389504,2280.9,2279.4,8.442]
[1773669176654,10.76389504,2280.9,2279.7,11.63422008]
[1773669176853,10.75941931,2280.7,2279.5,11.63422008]
[1773669177048,10.75941931,2280.7,2279.5,8.444]
[1773669177248,10.75941931,2280.7,2279.5,20.07822008]
[1773669177953,10.75941931,2280.7,2279.6,11.63422008]
[1773669178158,10.75941931,2280.7,2279.7,8.448]
[1773669178354,0.00447573,2280.9,2279.8,11.63422008]
[1773669178853,10.76389504,2280.9,2280.0,11.63422008]
[1773669179059,10.76389504,2280.9,2280.1,8.452]
[1773669179357,10.76389504,2280.9,2280.1,11.63422008]
[1773669179558,10.76389504,2280.9,2280.2,8.453]
[1773669179758,10.76389504,2280.9,2280.1,11.63422008]
[1773669179960,10.76389504,2280.9,2280.2,8.455]
[1773669180355,10.76389504,2280.9,2279.7,11.63422008]
[1773669180556,10.76389504,2280.9,2280.1,11.63422008]
[1773669180750,0.00447573,2280.9,2280.3,11.63422008]
[1773669180955,10.75941931,2281.2,2280.4,11.63422008]
[1773669181155,10.75941931,2281.2,2280.5,8.458]
[1773669181455,10.75941931,2281.2,2279.8,0.21928]
[1773669181456,10.75941931,2281.5,2280.8,0.21918]
[1773669181654,10.75941931,2282.5,2281.0,11.63422008]
[1773669181955,10.76311867,2282.5,2281.2,11.63422008]
[1773669182156,10.76311867,2282.5,2281.0,0.00444594]
[1773669182157,10.75941931,2282.0,2281.0,1e-08]
[1773669182357,10.75941931,2281.7,2280.6,11.63422008]
[1773669182558,10.75941931,2281.7,2280.7,8.452]
[1773669182758,10.75941931,2281.7,2280.8,11.63422008]
[1773669182964,10.75941931,2281.7,2280.9,8.453]
[1773669183164,10.75941931,2281.7,2279.8,0.21927]
[1773669183365,10.75941931,2281.5,2280.0,11.63422008]
[1773669184064,10.75941931,2281.3,2280.0,11.63422008]
[1773669184261,10.75941931,2280.7,2279.7,11.63422008]
[1773669184462,10.76353327,2280.7,2279.4,11.63422008]
[1773669185666,10.76353327,2280.7,2279.5,8.462]
[1773669185862,10.76353327,2280.7,2279.6,11.63422008]
[1773669186063,10.75941931,2280.3,2278.8,11.63422008]
[1773669186371,10.75941931,2280.3,2279.0,11.63422008]
[1773669186869,10.75941931,2280.3,2279.2,11.63422008]
[1773669187069,10.75941931,2280.3,2279.3,8.466]
[1773669187271,10.75941931,2280.3,2279.2,11.63422008]
[1773669187774,10.75941931,2280.3,2279.1,8.469]
[1773669187974,10.75941931,2280.3,2279.0,11.63422008]
[1773669188371,10.75941931,2280.3,2279.0,8.47]
[1773669188372,10.75941931,2280.1,2279.0,8.47]
[1773669188770,10.75941931,2280.1,2278.7,20.10622008]
[1773669188968,10.75941931,2279.9,2278.1,11.63422008]
[1773669189173,10.75941931,2279.9,2278.3,11.63422008]
[1773669189872,10.75941931,2279.7,2278.5,11.63422008]
[1773669190074,10.75941931,2280.2,2278.6,11.85362008]
[1773669190879,10.75941931,2280.2,2278.8,11.63422008]
[1773669191077,10.75941931,2280.2,2278.8,20.11122008]
[1773669191478,10.75941931,2280.0,2278.8,11.63422008]
[1773669191678,10.75941931,2280.0,2278.5,11.63422008]
[1773669191875,0.21929,2279.7,2278.5,11.63422008]
[1773669192075,8.77038,2280.1,2277.0,8.78194]
[1773669192076,10.75941931,2279.4,2277.9,11.63422008]
[1773669192276,10.75941931,2279.2,2278.0,11.63422008]
[1773669192482,10.75941931,2279.2,2278.0,20.11522008]
[1773669192682,10.75941931,2279.2,2277.7,11.63422008]
[1773669192882,10.75941931,2279.2,2277.8,0.21947]
[1773669193077,10.75941931,2279.2,2278.1,11.63422008]
[1773669193284,10.75941931,2279.2,2278.3,11.63422008]
[1773669193481,10.75941931,2279.6,2278.4,11.85363008]
[1773669193681,10.75941931,2279.6,2278.5,8.484]
[1773669193887,10.75941931,2279.6,2278.6,11.63422008]
[1773669194186,10.75941931,2279.6,2278.4,11.85363008]
[1773669194388,10.75941931,2279.6,2278.5,11.63422008]
[1773669194684,10.75941931,2280.2,2279.2,0.21934]
[1773669194983,10.75941931,2280.2,2279.3,11.63422008]
[1773669195188,10.75941931,2280.2,2279.4,11.63422008]
[1773669195385,10.75941931,2280.2,2279.0,11.63422008]
[1773669195779,10.75941931,2280.1,2279.0,11.63422008]
[1773669195983,10.75941931,2280.1,2278.9,8.489]
[1773669196184,10.97867931,2280.1,2278.5,8.49]
[1773669196486,10.97868931,2279.9,2278.5,8.49]
[1773669196680,10.75941931,2279.9,2278.5,8.49]
[1773669196882,10.75941931,2279.9,2278.6,11.63422008]
[1773669197082,10.75941931,2279.9,2277.8,8.77894]
[1773669197083,10.97869931,2279.9,2278.3,11.63422008]
[1773669197584,10.75941931,2279.9,2278.5,11.63422008]
[1773669198183,10.75941931,2279.9,2278.6,20.12722008]
[1773669198384,10.75941931,2279.9,2278.7,11.63422008]
[1773669198782,10.75941931,2279.9,2278.8,8.494]
[1773669198983,10.75941931,2279.9,2278.9,11.63422008]
[1773669199783,10.75941931,2279.9,2278.9,11.85358008]
[1773669199984,10.75941931,2280.2,2278.9,11.85358008]
[1773669200191,10.75941931,2280.2,2278.9,11.63422008]
[1773669200380,10.75941931,2280.0,2278.5,20.13122008]
[1773669200581,10.75941931,2279.8,2278.5,20.13122008]
[1773669200890,10.75941931,2279.6,2278.2,8.498]
[1773669201089,10.75941931,2279.6,2278.2,20.13222008]
[1773669201285,10.75941931,2279.6,2278.3,11.63422008]
[1773669201688,10.75941931,2279.6,2278.3,20.13422008]
[1773669202084,10.75941931,2279.6,2278.3,11.63422008]
[1773669202285,10.75941931,2279.4,2278.0,10.9910109]
[1773669202488,18.92510119,2279.7,2278.2,10.9910109]
[1773669202786,10.59210119,2279.9,2278.9,10.9910109]
[1773669203188,10.59210119,2279.9,2278.8,0.21937]
[1773669203189,10.59210119,2279.9,2279.1,10.9910109]
[1773669204492,10.59210119,2279.7,2278.6,8.506]
[1773669204692,10.59210119,2279.7,2278.5,10.9910109]
[1773669204991,10.59210119,2279.7,2278.6,10.9910109]
[1773669205387,8.334,2280.3,2278.6,10.9910109]
[1773669205388,10.59210119,2280.2,2278.6,10.9910109]
[1773669205587,10.59210119,2280.0,2278.6,10.9910109]
[1773669205786,10.59210119,2280.0,2278.8,10.9910109]
[1773669206188,10.59210119,2280.0,2279.0,10.9910109]
[1773669207004,10.59210119,2280.5,2278.8,11.2103909]
[1773669207294,10.59210119,2280.5,2279.2,10.9910109]
[1773669207498,10.59210119,2280.5,2279.4,10.9910109]
[1773669207688,10.59210119,2280.5,2279.6,10.9910109]
[1773669209598,10.59621515,2280.7,2279.6,10.9910109]
[1773669210892,10.59210119,2281.0,2279.6,11.21415215]
[1773669211295,10.59210119,2279.8,2278.4,10.9910109]
[1773669211699,10.59210119,2279.6,2278.4,10.9910109]
[1773669212218,10.59210119,2279.4,2278.4,10.9910109]
[1773669212494,10.59210119,2279.3,2278.4,10.9910109]
[1773669212796,18.93510119,2279.3,2278.4,10.9910109]
[1773669212991,18.93610119,2279.3,2278.4,10.9910109]
[1773669213597,10.59210119,2279.2,2278.4,10.9910109]
[1773669213792,10.59210119,2279.0,2278.2,8.519]
[1773669214102,10.59210119,2278.6,2277.1,10.9910109]
[1773669214397,12.37515941,2279.2,2277.1,10.9910109]
[1773669214398,10.59210119,2278.7,2277.2,10.9910109]
[1773669214594,10.59210119,2278.7,2277.2,11.2105409]
[1773669214796,18.93910119,2278.8,2277.2,11.2105409]
[1773669214996,18.94010119,2278.8,2277.2,11.2105409]
[1773669215700,10.59210119,2278.7,2277.2,11.2105409]
[1773669215900,10.59210119,2278.7,2277.2,10.9910109]
[1773669216097,10.59210119,2278.7,2277.4,10.9910109]
[1773669216801,10.59210119,2278.7,2277.1,8.74953]
[1773669216802,10.59210119,2279.1,2277.6,10.9910109]
[1773669216999,10.59210119,2279.0,2277.8,10.9910109]
[1773669218498,10.59210119,2279.3,2277.8,10.9910109]
[1773669218699,8.355,2279.2,2277.8,10.9910109]
[1773669218901,10.59210119,2279.1,2277.8,10.9910109]
[1773669219594,10.59210119,2278.9,2277.8,10.9910109]
[1773669219795,10.59210119,2278.9,2277.6,19.5270109]
[1773669219996,10.59210119,2278.7,2277.7,10.9910109]